Cogmind - Beta 13 @@@ ROGUE MODE // 2024.04.07 @ 21:42:39 Player: Rocketboy Result: Destroyed by D-53 Grenadier with Mini Grenade Launcher Performance ------------- Evolutions (0) 0 Regions Visited (2) 400 Robots Destroyed (27) 135 Value Destroyed (408) 408 Prototype IDs (0) 0 Alien Tech Used (0) 0 Bonus (-8) -8 TOTAL SCORE: 935 Bonus ------- Friendly Fire -8 Cogmind --------- Core Integrity 0/250 Matter 300/300 Energy 160/160 System Corruption 0% Temperature Cool (0) Movement Walking (120) Location -10/Mines Parts ------- > --- POWER (1) -------- Light Nuclear Core > --- PROPULSION (2) --- Aluminum Leg Aluminum Leg > --- UTILITY (2) ------ Small Storage Unit > --- WEAPON (2) ------- Light Assault Rifle Light Assault Rifle > --- INVENTORY (8) ---- Flight Unit Flight Unit Flight Unit Flight Unit Flight Unit Flight Unit Decoy Drone Bay Peak State ------------ > --- POWER ------------ Light Nuclear Core > --- PROPULSION ------- Wheel Compact Wheel > --- UTILITY ---------- Small Storage Unit Tractor Beam > --- WEAPON ----------- Light Assault Rifle Light Assault Rifle > --- INVENTORY -------- Flight Unit Flight Unit Flight Unit Flight Unit Flight Unit Flight Unit Decoy Drone Bay [Rating: 11] Favorites ----------- Power Light Nuclear Core Engine Ion Engine Power Core Light Nuclear Core Propulsion Aluminum Leg Leg Aluminum Leg Wheel Wheel Utility Small Storage Unit Device Tractor Beam Storage Small Storage Unit Processor Signal Interpreter Weapon Assault Rifle Energy Gun Medium Laser Ballistic Gun Assault Rifle Build | -11 -10 -10 ------- Run | Yrd Mat Min Slots Evolved . | . . . Power . | . . . Propulsion . | . . . Utility . | . . . Weapon . | . . . Parts Attached 22 | 7 4 11 Power 5 | 1 2 2 Engine 2 | 1 1 . Core 3 | . 1 2 Reactor . | . . . Propulsion 9 | 2 1 6 Treads . | . . . Leg 6 | 2 1 3 Wheel 3 | . . 3 Hover . | . . . Flight . | . . . Utility 4 | 2 1 1 Device 2 | 1 . 1 Storage 1 | 1 . . Processor 1 | . 1 . Hackware . | . . . Protection . | . . . Artifact . | . . . Weapon 4 | 2 . 2 Energy Gun 1 | 1 . . Energy Cannon . | . . . Ballistic Gun 3 | 1 . 2 Ballistic Cannon . | . . . Launcher . | . . . Special Weapon . | . . . Impact Weapon . | . . . Slashing Weapon . | . . . Piercing Weapon . | . . . Special Melee Weapon . | . . . Unidentified Prototypes . | . . . Parts Lost 7 | . . 7 Power 1 | . . 1 Propulsion 2 | . . 2 Utility 2 | . . 2 Weapon 2 | . . 2 Highest Loss Streak 5 | . . 5 To Critical Strikes . | . . . Average Slot Usage (%) 96 | . 100 92 Engine 6 | . 12 . Core 7 | . 1 13 Leg 19 | . 28 10 Wheel 6 | . . 14 Device 5 | . 5 6 Storage 14 | . 14 14 Processor 7 | . 8 5 Energy Gun 9 | . 14 5 Ballistic Gun 17 | . 14 20 Naked Turns . | . . . Heaviest Build 15 | 15 15 14 Greatest Support 26 | 20 20 26 Greatest Overweight (x) 1 | . . 1 Average Overweight (x) . | . . . Largest Inventory Capacity 8 | 8 8 8 Average Capacity 7 | 6 8 8 Most Carried 8 | 2 8 8 Average Carried 5 | 1 4 7 Final Capacity 8 | 8 8 8 Final Carried 8 | 2 8 8 Class Distribution -------------------- 72% | Mutant 27% | Scavenger-Mutant Dominant Class ---------------- Mutant | -10/Materials Scavenger-Mutant | -10/Mines Resources | -11 -10 -10 ----------- Run | Yrd Mat Min Matter Collected 636 | 269 200 167 Remotely 89 | . . 89 Salvage Created 893 | 103 468 322 Parts 56 | 6 26 24 Haulers Intercepted 1 | . 1 . Recyclers Shooed 5 | 1 1 3 Parts Field Recycled . | . . . Retrieved Matter . | . . . Parts Self-Destructed . | . . . Prevented . | . . . Kills | -11 -10 -10 ------- Run | Yrd Mat Min Combat Hostiles Destroyed 16 | . 9 7 Guns 16 | . 9 7 Classes Destroyed 7 | 2 5 . Worker 4 | . 3 1 Tunneler 2 | 1 . 1 Hauler 1 | . 1 . Recycler 3 | 1 . 2 Watcher 1 | . 1 . Swarmer 9 | . 3 6 Grunt 7 | . 6 1 Best Kill Streak 6 | 2 6 4 Combat Bots Only 5 | . 5 3 Max Kills in Single Turn 1 | 1 1 1 Gunslinging . | . . . Exploded . | . . . Melee . | . . . Uniques/NPCs Destroyed . | . . . Combat | -11 -10 -10 -------- Run | Yrd Mat Min Hostile Shots Fired 113 | . 45 68 Missed 33 | . 11 22 Damage Taken 948 | . 391 557 Core 263 | . 61 202 Absorbed by Shields . | . . . Core Remaining (%) 100 | 100 . . Volleys Fired 93 | 5 48 40 Largest 2 | 2 2 2 Hottest 70 | 70 70 70 Shots Fired 163 | 10 96 57 Gun 163 | 10 96 57 Cannon . | . . . Launcher . | . . . Special . | . . . Kinetic 101 | 5 48 48 Thermal 62 | 5 48 9 Explosive . | . . . Electromagnetic . | . . . Robot Hit Streak 13 | 5 13 6 Robot Miss Streak 6 | 2 6 4 Penetration Max . | . . . Secondary Targets 1 | . 1 . Max Gunslinging Chain 1 | . 1 . Shots Hit Robots 95 | 6 58 31 Core Hits 41 | 3 22 16 Critical Kills 1 | . . 1 Critical Parts Destroyed . | . . . Critical Strikes 4 | . 3 1 Burn 3 | . 3 . Destroy 1 | . . 1 Melee Attacks . | . . . Impact . | . . . Slashing . | . . . Piercing . | . . . Sneak Attacks . | . . . Combat Hostiles . | . . . Follow-up Attacks . | . . . Damage Inflicted 1092 | 70 715 307 Guns 1092 | 70 715 307 Cannons . | . . . Explosions . | . . . Melee . | . . . Ramming . | . . . Kinetic 668 | 45 379 244 Thermal 424 | 25 336 63 Explosive . | . . . Electromagnetic . | . . . Impact . | . . . Slashing . | . . . Piercing . | . . . Highest Corruption . | . . . Average Corruption . | . . . Corruption Purged . | . . . Corruption Blocked . | . . . Overload Shots . | . . . Overflow Damage . | . . . Projectiles . | . . . Explosions . | . . . Melee . | . . . Knockbacks . | . . . Impact . | . . . Kinetic . | . . . Secondary . | . . . Self-Inflicted Damage . | . . . Shots . | . . . Rammed . | . . . Targets Rammed . | . . . Kicked . | . . . Crushed . | . . . Highest Temperature 132 | 27 132 60 Average Temperature 37 | 12 46 15 Received Heat Transfer 231 | . 195 36 Siege Activations . | . . . Robots Corrupted . | . . . Combat Hostiles . | . . . Parts Fried . | . . . Impact Corruptions . | . . . Robots Melted . | . . . Combat Hostiles . | . . . Parts Melted 1 | . 1 . Heat Transferred 1480 | 74 1221 185 Parts Sabotaged . | . . . Parts Stolen . | . . . Parts Stripped . | . . . Power Chain Reactions . | . . . Alert | -11 -10 -10 ------- Run | Yrd Mat Min Peak Influence 288 | 10 288 242 Initial 112 | . 6 112 Average 120 | 4 116 142 Maximum Alert Level 1 | . 1 1 Low Security (%) 70 | 100 77 58 Level 1 29 | . 22 41 Level 2 . | . . . Level 3 . | . . . Level 4 . | . . . Level 5 . | . . . High Security . | . . . Max Security . | . . . Squads Dispatched 2 | . 2 . Investigation 1 | . 1 . Extermination . | . . . Reinforcement 1 | . 1 . Assault . | . . . Garrison . | . . . Intercept . | . . . Searches Triggered . | . . . Construction Impeded . | . . . Haulers Reinforced . | . . . Active Scanning Responses . | . . . Cargo Convoy Interrupts . | . . . Stealth | -11 -10 -10 --------- Run | Yrd Mat Min Distress Signals . | . . . Communications Jammed . | . . . Distress Signals . | . . . Times Spotted 37 | . 20 17 Peak Tracking Total 6 | . 6 5 Tactical Retreats 3 | . 2 1 Traps | -11 -10 -10 ------- Run | Yrd Mat Min Traps Triggered 1 | . 1 . Indirectly . | . . . Trap Hack Attempts . | . . . Triggered . | . . . Disarmed . | . . . Reprogrammed . | . . . Reused . | . . . Traps Extracted . | . . . Installed . | . . . Triggered . | . . . Objects Rigged 3 | . 3 . Machines | -11 -10 -10 ---------- Run | Yrd Mat Min Machines Disabled . | . . . Max in Single Turn . | . . . Machines Repaired . | . . . Machines Dismantled . | . . . Machines Sabotaged . | . . . Overloaded Fab Kills . | . . . Hacking | -11 -10 -10 --------- Run | Yrd Mat Min Machines Accessed 6 | . 5 1 Terminals 5 | . 5 . Fabricators . | . . . Repair Stations . | . . . Recycling Units . | . . . Scanalyzers . | . . . Garrison Access . | . . . Total Hacks 17 | . 16 1 Successful 9 | . 8 1 Failed 8 | . 8 . Catastrophic . | . . . Database Lockouts . | . . . Manual 13 | . 13 . Terminals 16 | . 16 . Fabricators . | . . . Repair Stations . | . . . Recycling Units . | . . . Scanalyzers . | . . . Garrison Access . | . . . Terminal Hacks 3 | . 2 1 Robot Analysis 1 | . 1 . Open Door 1 | . . 1 Alert Level 1 | . 1 . Fabricator Hacks . | . . . Repair Station Hacks . | . . . Recycling Unit Hacks . | . . . Scanalyzer . | . . . Garrison Access Hacks . | . . . Unauthorized Hacks 6 | . 6 . Terminals 6 | . 6 . Botnet 5 | . 5 . Detonate 1 | . 1 . Fabricators . | . . . Repair Stations . | . . . Recycling Units . | . . . Scanalyzers . | . . . Garrison Access . | . . . Data Cores Recovered . | . . . Used . | . . . Hacking Detections 5 | . 5 . Full Trace Events 2 | . 2 . Feedback Events . | . . . Feedback Blocked . | . . . Robot Schematics Acquired . | . . . Robots Built . | . . . Authchips . | . . . Time . | . . . Total Robot Build Rating . | . . . Part Schematics Acquired . | . . . Parts Built . | . . . Authchips . | . . . Time . | . . . Total Part Build Rating . | . . . Parts Repaired . | . . . Time . | . . . Parts Recycled . | . . . Recycled Matter . | . . . Retrieved Matter . | . . . Retrieved Components . | . . . Parts Scanalyzed . | . . . Part Schematics Acquired . | . . . Parts Damaged . | . . . Bothacking | -11 -10 -10 ------------ Run | Yrd Mat Min Used RIF Installer . | . . . Robots Hacked . | . . . Non-combat . | . . . Combat . | . . . Robot Hacks Applied . | . . . Relay Couplers Released . | . . . Fabnet Peak Effective % . | . . . Robots Rewired . | . . . Allies Hacked . | . . . Hacks Repelled . | . . . Allies | -11 -10 -10 -------- Run | Yrd Mat Min Total Allies 1 | . . 1 Largest Group 1 | . . 1 Highest-Rated Group 31 | . . 31 Highest-Rated Ally 31 | . . 31 Total Orders . | . . . Ally Attacks 1 | . . 1 Total Damage . | . . . Kills . | . . . Allies Corrupted . | . . . Allies Melted . | . . . Intel | -11 -10 -10 ------- Run | Yrd Mat Min Robot Analysis Total 1 | . 1 . Derelict Logs Recovered . | . . . Drone Launches . | . . . Drone Recoveries . | . . . Exploration | -11 -10 -10 ------------- Run | Yrd Mat Min Turns Passed 1330 | 90 640 600 Spaces Moved 897 | 55 385 457 Core 4 | 4 . . Treads . | . . . Legs 621 | 51 385 185 Wheels 272 | . . 272 Hover . | . . . Flight . | . . . Fastest Speed 50 | 50 120 80 Average Speed 112 | 114 120 105 Slowest Speed 190 | 120 120 190 Overloaded Moves . | . . . Propulsion Burnouts . | . . . Robots Hopped . | . . . Cave-ins Triggered . | . . . Exploration Rate (%) 41 | 3 57 64 Regions Visited 2 Branch Regions 1 Pre-discovered Areas 1 | . . 1 Known Exits Taken 1 | . 1 . Unknown Exits Taken 1 | 1 . . Scrap Searched . | . . . Spaces Dug . | . . . Terrain Destroyed . | . . . Melee . | . . . Projectile . | . . . AOE . | . . . Terrain Rammed . | . . . Walls Destroyed . | . . . Machines Disabled . | . . . Actions | -11 -10 -10 --------- Run | Yrd Mat Min Total 1060 | 68 468 524 Wait 22 | . 17 5 Move 895 | 54 384 457 Hop . | . . . Pick Up 14 | 2 9 3 Fast Attach 18 | 7 2 9 Attach 1 | . . 1 Detach 1 | . 1 . Swap 3 | . 2 1 Drop 13 | . 5 8 Fire 93 | 5 48 40 Melee . | . . . Ram . | . . . Kick . | . . . Crush . | . . . Escape Stasis . | . . . Rewire . | . . . Trap . | . . . Miscellaneous . | . . . Route ------- -11/Scrapyard -10/Materials (discovered 3 exits: *Mat x2 / *Min) -10/Mines (discovered 3 exits: *Mat x2 / [*Sub]) History --------- Turn | Location | Event 3 | -11/Scrapyard | Discovered new exit (range 15) 91 | -11/Scrapyard | Entered Materials 137 | -10/Materials | Discovered new exit (range 14) 286 | -10/Materials | Discovered new exit (range 10) 301 | -10/Materials | Build established: Mutant 350 | -10/Materials | Discovered new exit (range 16) 367 | -10/Materials | Identified exit to Materials 477 | -10/Materials | Identified exit to Mines 731 | -10/Materials | Entered Mines 799 | -10/Mines | Discovered exit to Materials (range 10) 983 | -10/Mines | Core integrity fell below 50% 1019 | -10/Mines | Lost 5 parts (1p1n1u2w) 1047 | -10/Mines | Discovered exit to Materials (range 6) 1139 | -10/Mines | Assembled infested the area 1199 | -10/Mines | Found the Drone Emporium 1204 | -10/Mines | Found Prototype Device 1212 | -10/Mines | Discovered new exit (range 12) 1225 | -10/Mines | Found a hidden stash of uninstalled traps 1250 | -10/Mines | Escorted by a lone wolf Derelict 1270 | -10/Mines | Learned location of Storage (-9) 1310 | -10/Mines | Build established: Scavenger-Mutant 1329 | -10/Mines | Core integrity fell below 20% 1331 | -10/Mines | Destroyed by D-53 Grenadier with Mini Grenade Launcher Last Messages --------------- Dropped Wheel. Acquired Aluminum Leg. Acquired 10 matter. Dropped Com. Wheel. Acquired Aluminum Leg. Acquired 8 matter. Acquired 2 matter. Dropped Aluminum Leg. 2L-F6B(g): "While you're wandering around here, I suggest you avoid Complex 0b10 Storage. Security there is tighter since Warlord's second failed attempt to raid it." World map updated: -9/Storage. Acquired Aluminum Leg. Acquired 10 matter. Laser Drill disabled. 2L-F6B(g): "Mission, incomplete...*fzzt*" 2L-F6B(g) destroyed. Tractor Beam destroyed. T-07 Excavator destroyed. Map ----- +----------------------------------------------------+ | ?## #???????????????????# #????????## !#???? | | ?## #??????????######???# #??####???## #???? | | ## ##?????????##""""##??# #?## ###??# #???? | | ##??????????#" !"#??# #?# #### #???? | | ##???????????#" "#??# ### & & ##??? | | % ##??????????### ##??# ## & ##?? | | ! ##?????????# ## ###??#### ### #### #?? | | #????????## X ####??# #?# ##?### #?? | | #?????#### # ##?# #?# #???## #?? | | ##????# ##### ### #?# #????## ##?? | | ## ##???## ## #?#% #?????###??? | | ##### #????### < #### ###* #??????????? | | ????## #??????## ## #??# #??????????? | | ?????# #???????######### #??##### #??????????? | | ?????# ##??????????????# #??????# ##?????????? | | ?????# = #??????????????# #????### #?????????? | | ?????## #??????????????# #???## #?????????? | | ??????# #?????????????? ?## #?????????? | | ??????# #????####?????? ?# #?????????? | | ??????# #???## ##????? #? d ##????????? | | ??????# %##### ##???< ### d #????????? | | ??????## =%! ##??##### #????????? | | ???????# ###### ###????????? | | ???????# ### ## # ##??????????? | | ???????# #?# ### # ###???????????? | | ???????# ##?###?## @% #?????????????? | | ???????## ##???????## ## ##?????????????? | | ????????###?????????###### # #??????????????? | | ?????????????????????????#### ####??????????????? | | ?????????????????????????????###?????????????????? | | ?????????????????????????????????????????????????? | | | | | | | | | | | | | | | | | | | | | | | | | | | | | | | | | | | | | | | +----------------------------------------------------+ Best States ------------- Heat Dissipation 25 Energy Generation 14 Energy Capacity 250 Matter Stores 300 Matter Capacity 300 Sight Range 16 Terrain Scan Range 16 Terrain Scan Density 10 Evasion (%) 55 Item Schematics ----------------- None Robot Schematics ------------------ None Fabricated ------------ Nothing Alien Tech Used ----------------- None Achievements -------------- None Challenges ------------ None Game ------ Seed RecoilImpulseCleaver Manual? 0 Play Time 00:15:07 Cumulative 20.5 hours Start 2024.04.07 @ 21:27:02 End 2024.04.07 @ 21:42:39 Sessions 3 Manual Loads 0 Difficulty Rogue Special Mode None Game No. 36 Rogue 36 Adventurer 0 Explorer 0 Win Type - Total 0 Types 0/0/0/0/0/0/0/0/0 Lore% 19 Gallery% 26 Achievement% 21 Wizard Run 0 Options --------- Layout 1 ASCII 0 Keyboard 0 Movement Mouse Keybinds 0 Fullscreen 1 Font 32/SmallcapsGlow Map View 50x35 Zoom Use 0% Tactical HUD 0 Map Filters NONE Filters NONE Steam 1 RUN: fb39fac0-8e1b-4f3f-b2a4-08332e3308ff